[Event "Titled Tuesday Blitz February 14 Early 2023"]
[White "Bok, Benjamin"]
[Black "Mindlin, Alon"]
[WhiteFideId "1017063"]
[BlackFideId "2800071"]
[WhiteElo "2607"]
[BlackElo "2435"]
[Result "1-0"]
[Round "06"]
[TimeControl "180+2"]
[Date "2023.02.15"]
[WhiteClock "0:00:04"]
[BlackClock "0:00:03"]

1. d4 {[%clk 0:03:00]}  Nf6 {[%clk 0:03:00]} 2. c4 {[%clk 0:03:00]}  e6 {[%clk 0:03:00]} 3. Nc3 {[%clk 0:03:01]}  Bb4 {[%clk 0:03:00]} 4. Qc2 {[%clk 0:03:01]}  d5 {[%clk 0:03:00]} 5. a3 {[%clk 0:03:01]}  Bxc3+ {[%clk 0:02:59]} 6. Qxc3 {[%clk 0:03:02]}  Ne4 {[%clk 0:03:00]} 7. Qc2 {[%clk 0:03:02]}  c5 {[%clk 0:03:00]} 8. dxc5 {[%clk 0:03:01]}  Nc6 {[%clk 0:03:01]} 9. Nf3 {[%clk 0:03:00]}  Qa5+ {[%clk 0:02:58]} 10. Bd2 {[%clk 0:03:00]}  Nxd2 {[%clk 0:02:57]} 11. Nxd2 {[%clk 0:02:51]}  Qxc5 {[%clk 0:02:55]} 12. e3 {[%clk 0:02:50]}  O-O {[%clk 0:02:48]} 13. b4 {[%clk 0:02:38]}  Qe7 {[%clk 0:02:45]} 14. Bd3 {[%clk 0:02:38]}  h6 {[%clk 0:02:42]} 15. O-O {[%clk 0:02:16]}  Bd7 {[%clk 0:02:30]} 16. cxd5 {[%clk 0:01:29]}  exd5 {[%clk 0:02:27]} 17. Bh7+ {[%clk 0:01:28]}  Kh8 {[%clk 0:02:26]} 18. Bf5 {[%clk 0:01:29]}  d4 {[%clk 0:02:14]} 19. Rae1 {[%clk 0:00:46]}  Rac8 {[%clk 0:01:35]} 20. exd4 {[%clk 0:00:26]}  Qd6 {[%clk 0:01:34]} 21. Nc4 {[%clk 0:00:24]}  Qc7 {[%clk 0:01:27]} 22. Bxd7 {[%clk 0:00:13]}  Qxd7 {[%clk 0:01:24]} 23. Qd3 {[%clk 0:00:14]}  Qxd4 {[%clk 0:01:15]} 24. Qxd4 {[%clk 0:00:12]}  Nxd4 {[%clk 0:01:16]} 25. Nd6 {[%clk 0:00:13]}  Rc7 {[%clk 0:01:13]} 26. Re4 {[%clk 0:00:13]}  Nc2 {[%clk 0:00:54]} 27. Nb5 {[%clk 0:00:13]}  Rd7 {[%clk 0:00:51]} 28. Rc4 {[%clk 0:00:13]}  a6 {[%clk 0:00:47]} 29. Rxc2 {[%clk 0:00:12]}  axb5 {[%clk 0:00:47]} 30. Rc5 {[%clk 0:00:13]}  Ra8 {[%clk 0:00:46]} 31. Rxb5 {[%clk 0:00:10]}  Rxa3 {[%clk 0:00:46]} 32. g3 {[%clk 0:00:10]}  Rb3 {[%clk 0:00:45]} 33. Re1 {[%clk 0:00:10]}  Rb2 {[%clk 0:00:43]} 34. Re3 {[%clk 0:00:09]}  g6 {[%clk 0:00:41]} 35. Kg2 {[%clk 0:00:09]}  Kg7 {[%clk 0:00:41]} 36. h4 {[%clk 0:00:09]}  h5 {[%clk 0:00:41]} 37. Re4 {[%clk 0:00:08]}  Rc7 {[%clk 0:00:38]} 38. Rb6 {[%clk 0:00:07]}  Rd7 {[%clk 0:00:37]} 39. b5 {[%clk 0:00:07]}  Rc7 {[%clk 0:00:37]} 40. Rf4 {[%clk 0:00:07]}  Rd7 {[%clk 0:00:37]} 41. Rf3 {[%clk 0:00:07]}  Re7 {[%clk 0:00:37]} 42. Rf4 {[%clk 0:00:05]}  Rd7 {[%clk 0:00:37]} 43. Re4 {[%clk 0:00:04]}  Rc7 {[%clk 0:00:35]} 44. Re3 {[%clk 0:00:04]}  Rc5 {[%clk 0:00:33]} 45. Rxb7 {[%clk 0:00:03]}  Rcxb5 {[%clk 0:00:31]} 46. Rxb5 {[%clk 0:00:03]}  Rxb5 {[%clk 0:00:31]} 47. Rd3 {[%clk 0:00:03]}  Rf5 {[%clk 0:00:31]} 48. Rc3 {[%clk 0:00:03]}  Rf6 {[%clk 0:00:31]} 49. Rf3 {[%clk 0:00:03]}  Rxf3 {[%clk 0:00:31]} 50. Kxf3 {[%clk 0:00:04]}  Kf6 {[%clk 0:00:31]} 51. Kf4 {[%clk 0:00:04]}  Kg7 {[%clk 0:00:28]} 52. Ke5 {[%clk 0:00:04]}  Kg8 {[%clk 0:00:24]} 53. Kf6 {[%clk 0:00:04]}  Kf8 {[%clk 0:00:24]} 54. f4 {[%clk 0:00:04]}  Kg8 {[%clk 0:00:25]} 55. f5 {[%clk 0:00:04]}  Kh7 {[%clk 0:00:16]} 56. Kxf7 {[%clk 0:00:04]}  gxf5 {[%clk 0:00:16]} 57. Kf6 {[%clk 0:00:04]}  Kh6 {[%clk 0:00:03]} 58. Kxf5 {[%clk 0:00:04]} 1-0


[Site "https://www.chess.com"]

[Event "Titled Tuesday Blitz February 14 Early 2023"]
[White "Zhigalko, Sergei"]
[Black "Lenderman, Aleksandr"]
[WhiteFideId "13502956"]
[BlackFideId "2021285"]
[WhiteElo "2572"]
[BlackElo "2572"]
[Result "1/2-1/2"]
[Round "06"]
[TimeControl "180+2"]
[Date "2023.02.15"]
[WhiteClock "0:00:05"]
[BlackClock "0:00:29"]

1. e4 {[%clk 0:03:00]}  e5 {[%clk 0:02:58]} 2. Nf3 {[%clk 0:03:00]}  Nf6 {[%clk 0:02:59]} 3. Nxe5 {[%clk 0:02:59]}  d6 {[%clk 0:02:59]} 4. Nf3 {[%clk 0:03:00]}  Nxe4 {[%clk 0:02:59]} 5. Nc3 {[%clk 0:03:00]}  Nf6 {[%clk 0:02:58]} 6. d4 {[%clk 0:03:01]}  Be7 {[%clk 0:02:56]} 7. Bd3 {[%clk 0:03:01]}  O-O {[%clk 0:02:56]} 8. h3 {[%clk 0:03:02]}  b6 {[%clk 0:02:52]} 9. O-O {[%clk 0:03:01]}  Bb7 {[%clk 0:02:52]} 10. Re1 {[%clk 0:03:01]}  Re8 {[%clk 0:02:53]} 11. d5 {[%clk 0:02:34]}  Nbd7 {[%clk 0:02:51]} 12. Nd4 {[%clk 0:02:30]}  Bf8 {[%clk 0:02:50]} 13. Bg5 {[%clk 0:02:21]}  Rxe1+ {[%clk 0:02:44]} 14. Qxe1 {[%clk 0:02:22]}  g6 {[%clk 0:02:39]} 15. Bb5 {[%clk 0:02:09]}  Bg7 {[%clk 0:02:38]} 16. Bc6 {[%clk 0:02:01]}  Bxc6 {[%clk 0:02:30]} 17. Nxc6 {[%clk 0:02:01]}  Qe8 {[%clk 0:02:28]} 18. Qd2 {[%clk 0:02:00]}  Ne5 {[%clk 0:02:02]} 19. Re1 {[%clk 0:01:54]}  Qd7 {[%clk 0:01:55]} 20. Nxe5 {[%clk 0:01:45]}  dxe5 {[%clk 0:01:56]} 21. Rxe5 {[%clk 0:01:43]}  Re8 {[%clk 0:01:56]} 22. Rxe8+ {[%clk 0:01:35]}  Nxe8 {[%clk 0:01:57]} 23. Bh6 {[%clk 0:01:16]}  Bxh6 {[%clk 0:01:50]} 24. Qxh6 {[%clk 0:01:16]}  Nf6 {[%clk 0:01:49]} 25. Qg5 {[%clk 0:00:56]}  Qe7 {[%clk 0:01:40]} 26. Qf4 {[%clk 0:00:42]}  Ne8 {[%clk 0:01:27]} 27. Qe4 {[%clk 0:00:40]}  Qd7 {[%clk 0:01:25]} 28. Qe5 {[%clk 0:00:37]}  Nd6 {[%clk 0:01:23]} 29. Ne4 {[%clk 0:00:36]}  Nxe4 {[%clk 0:01:22]} 30. Qxe4 {[%clk 0:00:37]}  Qd6 {[%clk 0:01:22]} 31. c4 {[%clk 0:00:33]}  Qf6 {[%clk 0:01:21]} 32. Qe2 {[%clk 0:00:23]}  Qd4 {[%clk 0:01:19]} 33. b3 {[%clk 0:00:19]}  Kg7 {[%clk 0:01:19]} 34. g3 {[%clk 0:00:19]}  a5 {[%clk 0:01:14]} 35. Kg2 {[%clk 0:00:19]}  Qf6 {[%clk 0:01:13]} 36. h4 {[%clk 0:00:18]}  h5 {[%clk 0:01:13]} 37. f4 {[%clk 0:00:10]}  Qd8 {[%clk 0:01:07]} 38. Qe5+ {[%clk 0:00:10]}  Kg8 {[%clk 0:01:08]} 39. Kf3 {[%clk 0:00:06]}  Qd7 {[%clk 0:01:07]} 40. a4 {[%clk 0:00:05]}  Qh3 {[%clk 0:01:00]} 41. Qxc7 {[%clk 0:00:03]}  Qf1+ {[%clk 0:01:00]} 42. Ke3 {[%clk 0:00:03]}  Qe1+ {[%clk 0:00:57]} 43. Kf3 {[%clk 0:00:02]}  Qf1+ {[%clk 0:00:51]} 44. Ke4 {[%clk 0:00:02]}  Qe2+ {[%clk 0:00:51]} 45. Kd4 {[%clk 0:00:02]}  Qb2+ {[%clk 0:00:49]} 46. Ke3 {[%clk 0:00:02]}  Qc1+ {[%clk 0:00:41]} 47. Ke2 {[%clk 0:00:02]}  Qc2+ {[%clk 0:00:39]} 48. Ke1 {[%clk 0:00:02]}  Qc1+ {[%clk 0:00:40]} 49. Kf2 {[%clk 0:00:02]}  Qd2+ {[%clk 0:00:39]} 50. Kf1 {[%clk 0:00:03]}  Qd1+ {[%clk 0:00:39]} 51. Kf2 {[%clk 0:00:03]}  Qd2+ {[%clk 0:00:38]} 52. Kf1 {[%clk 0:00:03]}  Qd1+ {[%clk 0:00:39]} 53. Kg2 {[%clk 0:00:04]}  Qe2+ {[%clk 0:00:39]} 54. Kg1 {[%clk 0:00:04]}  Qe1+ {[%clk 0:00:39]} 55. Kh2 {[%clk 0:00:04]}  Qf2+ {[%clk 0:00:39]} 56. Kh1 {[%clk 0:00:04]}  Qf3+ {[%clk 0:00:28]} 57. Kh2 {[%clk 0:00:04]}  Qf2+ {[%clk 0:00:29]} 58. Kh1 {[%clk 0:00:04]}  Qf1+ {[%clk 0:00:29]} 59. Kh2 {[%clk 0:00:05]}  Qf2+ {[%clk 0:00:29]} 1/2-1/2


[Site "https://www.chess.com"]

[Event "Titled Tuesday Blitz February 14 Early 2023"]
[White "Indjic, Aleksandar"]
[Black "Van Foreest, Jorden"]
[WhiteFideId "911925"]
[BlackFideId "1039784"]
[WhiteElo "2618"]
[BlackElo "2689"]
[Result "1/2-1/2"]
[Round "06"]
[TimeControl "180+2"]
[Date "2023.02.15"]
[WhiteClock "0:00:17"]
[BlackClock "0:00:19"]

1. e4 {[%clk 0:03:00]}  e5 {[%clk 0:02:57]} 2. Nf3 {[%clk 0:03:00]}  Nc6 {[%clk 0:02:57]} 3. Nc3 {[%clk 0:03:00]}  Nf6 {[%clk 0:02:54]} 4. d4 {[%clk 0:02:58]}  exd4 {[%clk 0:02:54]} 5. Nxd4 {[%clk 0:02:58]}  Bb4 {[%clk 0:02:52]} 6. Nxc6 {[%clk 0:02:58]}  dxc6 {[%clk 0:02:48]} 7. Qxd8+ {[%clk 0:02:56]}  Kxd8 {[%clk 0:02:49]} 8. f3 {[%clk 0:02:53]}  Ke7 {[%clk 0:02:47]} 9. Bd2 {[%clk 0:02:51]}  Be6 {[%clk 0:02:44]} 10. a3 {[%clk 0:02:49]}  Bc5 {[%clk 0:02:40]} 11. O-O-O {[%clk 0:02:46]}  Rhd8 {[%clk 0:02:35]} 12. Be2 {[%clk 0:02:45]}  h6 {[%clk 0:02:29]} 13. Na4 {[%clk 0:02:38]}  Bd6 {[%clk 0:02:25]} 14. Be3 {[%clk 0:02:13]}  b6 {[%clk 0:02:20]} 15. Rd2 {[%clk 0:01:45]}  g5 {[%clk 0:02:17]} 16. Nc3 {[%clk 0:01:40]}  Be5 {[%clk 0:02:09]} 17. Rxd8 {[%clk 0:01:39]}  Rxd8 {[%clk 0:02:09]} 18. Nd1 {[%clk 0:01:40]}  c5 {[%clk 0:02:07]} 19. Nf2 {[%clk 0:01:38]}  Bd4 {[%clk 0:02:04]} 20. Nd1 {[%clk 0:01:37]}  a5 {[%clk 0:01:51]} 21. h4 {[%clk 0:01:36]}  Nh5 {[%clk 0:01:42]} 22. hxg5 {[%clk 0:01:16]}  Ng3 {[%clk 0:01:41]} 23. Re1 {[%clk 0:01:17]}  Bxe3+ {[%clk 0:01:41]} 24. Nxe3 {[%clk 0:01:16]}  hxg5 {[%clk 0:01:42]} 25. Bc4 {[%clk 0:01:15]}  Bxc4 {[%clk 0:01:28]} 26. Nxc4 {[%clk 0:01:16]}  Ke6 {[%clk 0:01:29]} 27. a4 {[%clk 0:01:16]}  Rh8 {[%clk 0:01:19]} 28. Ne3 {[%clk 0:01:09]}  Rh2 {[%clk 0:01:18]} 29. b3 {[%clk 0:01:04]}  Nh5 {[%clk 0:01:07]} 30. Re2 {[%clk 0:00:52]}  Nf4 {[%clk 0:01:02]} 31. Rd2 {[%clk 0:00:52]}  Rh1+ {[%clk 0:01:01]} 32. Kb2 {[%clk 0:00:50]}  Rg1 {[%clk 0:01:01]} 33. Kc3 {[%clk 0:00:47]}  Re1 {[%clk 0:00:42]} 34. Nd5 {[%clk 0:00:43]}  Nxd5+ {[%clk 0:00:38]} 35. Rxd5 {[%clk 0:00:41]}  f6 {[%clk 0:00:38]} 36. Rd2 {[%clk 0:00:40]}  g4 {[%clk 0:00:36]} 37. Kc4 {[%clk 0:00:39]}  Re3 {[%clk 0:00:35]} 38. Kb5 {[%clk 0:00:22]}  gxf3 {[%clk 0:00:28]} 39. gxf3 {[%clk 0:00:23]}  Rxf3 {[%clk 0:00:24]} 40. Kc6 {[%clk 0:00:24]}  Rc3 {[%clk 0:00:23]} 41. Kxc7 {[%clk 0:00:21]}  c4 {[%clk 0:00:24]} 42. Kxb6 {[%clk 0:00:20]}  cxb3 {[%clk 0:00:25]} 43. cxb3 {[%clk 0:00:21]}  Rxb3+ {[%clk 0:00:25]} 44. Kxa5 {[%clk 0:00:21]}  Ke5 {[%clk 0:00:26]} 45. Rf2 {[%clk 0:00:21]}  Rb1 {[%clk 0:00:22]} 46. Ka6 {[%clk 0:00:21]}  Rb4 {[%clk 0:00:21]} 47. a5 {[%clk 0:00:21]}  Rxe4 {[%clk 0:00:20]} 48. Kb5 {[%clk 0:00:21]}  Re1 {[%clk 0:00:18]} 49. a6 {[%clk 0:00:20]}  Rb1+ {[%clk 0:00:19]} 50. Kc6 {[%clk 0:00:20]}  Rc1+ {[%clk 0:00:19]} 51. Kb7 {[%clk 0:00:20]}  Rb1+ {[%clk 0:00:20]} 52. Ka8 {[%clk 0:00:21]}  f5 {[%clk 0:00:20]} 53. Re2+ {[%clk 0:00:19]}  Kd4 {[%clk 0:00:19]} 54. Re8 {[%clk 0:00:18]}  f4 {[%clk 0:00:19]} 55. Rb8 {[%clk 0:00:18]}  Ra1 {[%clk 0:00:19]} 56. a7 {[%clk 0:00:19]}  f3 {[%clk 0:00:19]} 57. Kb7 {[%clk 0:00:19]}  f2 {[%clk 0:00:18]} 58. Rf8 {[%clk 0:00:18]}  Rxa7+ {[%clk 0:00:18]} 59. Kxa7 {[%clk 0:00:18]}  Ke3 {[%clk 0:00:19]} 60. Rxf2 {[%clk 0:00:17]}  Kxf2 {[%clk 0:00:19]} 1/2-1/2


[Site "https://www.chess.com"]

[Event "Titled Tuesday Blitz February 14 Early 2023"]
[White "Murzin, Volodar"]
[Black "Sanal, Vahap"]
[WhiteFideId "44155573"]
[BlackFideId "6300545"]
[WhiteElo "2604"]
[BlackElo "2600"]
[Result "0-1"]
[Round "06"]
[TimeControl "180+2"]
[Date "2023.02.15"]
[WhiteClock "0:00:01"]
[BlackClock "0:00:18"]

1. e4 {[%clk 0:03:00]}  e5 {[%clk 0:02:57]} 2. Nf3 {[%clk 0:03:00]}  Nc6 {[%clk 0:02:57]} 3. Nc3 {[%clk 0:03:01]}  Nf6 {[%clk 0:02:57]} 4. a4 {[%clk 0:03:02]}  d5 {[%clk 0:02:54]} 5. exd5 {[%clk 0:03:00]}  Nxd5 {[%clk 0:02:55]} 6. Bb5 {[%clk 0:03:00]}  Nxc3 {[%clk 0:02:53]} 7. bxc3 {[%clk 0:03:01]}  Bd6 {[%clk 0:02:53]} 8. O-O {[%clk 0:03:01]}  O-O {[%clk 0:02:53]} 9. d4 {[%clk 0:03:02]}  exd4 {[%clk 0:02:53]} 10. cxd4 {[%clk 0:03:03]}  h6 {[%clk 0:02:53]} 11. c3 {[%clk 0:03:01]}  Qf6 {[%clk 0:02:53]} 12. h3 {[%clk 0:02:58]}  Bf5 {[%clk 0:02:46]} 13. Bd3 {[%clk 0:02:57]}  Ne7 {[%clk 0:02:35]} 14. Rb1 {[%clk 0:02:54]}  b6 {[%clk 0:02:34]} 15. Re1 {[%clk 0:02:47]}  Rad8 {[%clk 0:02:30]} 16. Qc2 {[%clk 0:02:38]}  Bxh3 {[%clk 0:02:21]} 17. Rb5 {[%clk 0:02:24]}  c5 {[%clk 0:02:17]} 18. dxc5 {[%clk 0:01:50]}  bxc5 {[%clk 0:02:16]} 19. Nd2 {[%clk 0:01:35]}  Bd7 {[%clk 0:02:00]} 20. Rb1 {[%clk 0:00:55]}  Bc6 {[%clk 0:01:49]} 21. Be4 {[%clk 0:00:53]}  Bc7 {[%clk 0:01:38]} 22. Nf3 {[%clk 0:00:39]}  Rfe8 {[%clk 0:01:35]} 23. Ba3 {[%clk 0:00:36]}  Bd6 {[%clk 0:01:20]} 24. Rbd1 {[%clk 0:00:27]}  Bxe4 {[%clk 0:01:17]} 25. Rxe4 {[%clk 0:00:28]}  Nf5 {[%clk 0:01:15]} 26. Rd5 {[%clk 0:00:17]}  Rxe4 {[%clk 0:01:02]} 27. Qxe4 {[%clk 0:00:18]}  Ne7 {[%clk 0:01:01]} 28. Rd2 {[%clk 0:00:12]}  Rb8 {[%clk 0:00:44]} 29. g3 {[%clk 0:00:11]}  Qxc3 {[%clk 0:00:33]} 30. Rxd6 {[%clk 0:00:11]}  Qxa3 {[%clk 0:00:32]} 31. Rd7 {[%clk 0:00:10]}  Ng6 {[%clk 0:00:24]} 32. Rxa7 {[%clk 0:00:10]}  Qc1+ {[%clk 0:00:24]} 33. Kg2 {[%clk 0:00:10]}  Rb1 {[%clk 0:00:20]} 34. Ra8+ {[%clk 0:00:03]}  Kh7 {[%clk 0:00:21]} 35. Kh3 {[%clk 0:00:02]}  Qh1+ {[%clk 0:00:21]} 36. Kg4 {[%clk 0:00:02]}  Rb4 {[%clk 0:00:19]} 37. Ng5+ {[%clk 0:00:01]}  hxg5 {[%clk 0:00:18]} 0-1


[Site "https://www.chess.com"]

[Event "Titled Tuesday Blitz February 14 Early 2023"]
[White "Seo, Jung Min"]
[Black "Nihal Sarin"]
[WhiteFideId "1734687"]
[BlackFideId "25092340"]
[WhiteElo "2494"]
[BlackElo "2673"]
[Result "0-1"]
[Round "06"]
[TimeControl "180+2"]
[Date "2023.02.15"]
[WhiteClock "0:01:09"]
[BlackClock "0:00:37"]

1. e4 {[%clk 0:02:59]}  e5 {[%clk 0:02:57]} 2. Nf3 {[%clk 0:03:00]}  Nc6 {[%clk 0:02:57]} 3. Bb5 {[%clk 0:03:00]}  Nf6 {[%clk 0:02:56]} 4. d3 {[%clk 0:02:57]}  Bc5 {[%clk 0:02:56]} 5. Bxc6 {[%clk 0:02:56]}  dxc6 {[%clk 0:02:57]} 6. Nbd2 {[%clk 0:02:55]}  Be6 {[%clk 0:02:57]} 7. O-O {[%clk 0:02:52]}  Nd7 {[%clk 0:02:56]} 8. Nb3 {[%clk 0:02:52]}  Bb6 {[%clk 0:02:57]} 9. Ng5 {[%clk 0:02:52]}  Bxb3 {[%clk 0:02:57]} 10. axb3 {[%clk 0:02:53]}  f6 {[%clk 0:02:57]} 11. Nf3 {[%clk 0:02:52]}  Qe7 {[%clk 0:02:57]} 12. Nd2 {[%clk 0:02:52]}  a6 {[%clk 0:02:54]} 13. Nc4 {[%clk 0:02:52]}  Ba7 {[%clk 0:02:54]} 14. Be3 {[%clk 0:02:49]}  Bxe3 {[%clk 0:02:23]} 15. Nxe3 {[%clk 0:02:49]}  O-O-O {[%clk 0:02:21]} 16. f4 {[%clk 0:02:44]}  exf4 {[%clk 0:02:18]} 17. Rxf4 {[%clk 0:02:44]}  g6 {[%clk 0:02:17]} 18. Rf1 {[%clk 0:02:39]}  f5 {[%clk 0:02:15]} 19. Qf3 {[%clk 0:02:31]}  Rhe8 {[%clk 0:02:14]} 20. Nc4 {[%clk 0:02:27]}  fxe4 {[%clk 0:02:10]} 21. dxe4 {[%clk 0:02:27]}  Ne5 {[%clk 0:01:41]} 22. Qh3+ {[%clk 0:02:24]}  Kb8 {[%clk 0:01:40]} 23. Na5 {[%clk 0:01:37]}  Qc5+ {[%clk 0:01:23]} 24. Kh1 {[%clk 0:01:37]}  Qxc2 {[%clk 0:01:23]} 25. Qxh7 {[%clk 0:01:36]}  Rd2 {[%clk 0:01:13]} 26. Qh3 {[%clk 0:01:26]}  Qxb2 {[%clk 0:01:01]} 27. Rab1 {[%clk 0:01:20]}  Qd4 {[%clk 0:00:58]} 28. b4 {[%clk 0:01:18]}  Qxe4 {[%clk 0:00:42]} 29. Rfe1 {[%clk 0:01:16]}  Nd3 {[%clk 0:00:39]} 30. Rxe4 {[%clk 0:01:09]}  Nf2+ {[%clk 0:00:37]} 0-1


[Site "https://www.chess.com"]

[Event "Titled Tuesday Blitz February 14 Early 2023"]
[White "Beerdsen, Thomas"]
[Black "Lazavik, Denis"]
[WhiteFideId "1030108"]
[BlackFideId "13515110"]
[WhiteElo "2507"]
[BlackElo "2544"]
[Result "0-1"]
[Round "06"]
[TimeControl "180+2"]
[Date "2023.02.15"]
[WhiteClock "0:01:52"]
[BlackClock "0:00:54"]

1. e4 {[%clk 0:03:00]}  c5 {[%clk 0:02:59]} 2. Nf3 {[%clk 0:03:00]}  e6 {[%clk 0:03:00]} 3. d4 {[%clk 0:03:00]}  cxd4 {[%clk 0:03:01]} 4. Bg5 {[%clk 0:03:01]}  Qa5+ {[%clk 0:02:40]} 5. c3 {[%clk 0:03:00]}  dxc3 {[%clk 0:02:24]} 6. Nxc3 {[%clk 0:03:01]}  Nc6 {[%clk 0:02:24]} 7. Bd3 {[%clk 0:02:59]}  Be7 {[%clk 0:02:23]} 8. Bd2 {[%clk 0:02:58]}  Qd8 {[%clk 0:02:17]} 9. O-O {[%clk 0:02:56]}  d6 {[%clk 0:02:18]} 10. Rc1 {[%clk 0:02:52]}  Nf6 {[%clk 0:02:17]} 11. h3 {[%clk 0:02:50]}  O-O {[%clk 0:02:17]} 12. Re1 {[%clk 0:02:47]}  Nd7 {[%clk 0:02:06]} 13. Bb1 {[%clk 0:02:44]}  Nde5 {[%clk 0:02:02]} 14. Bf4 {[%clk 0:02:38]}  Bd7 {[%clk 0:01:50]} 15. Qe2 {[%clk 0:02:29]}  Qa5 {[%clk 0:01:45]} 16. Red1 {[%clk 0:02:29]}  Rfd8 {[%clk 0:01:44]} 17. a3 {[%clk 0:02:27]}  Rac8 {[%clk 0:01:31]} 18. Bg3 {[%clk 0:02:17]}  Nxf3+ {[%clk 0:01:26]} 19. Qxf3 {[%clk 0:02:18]}  Ne5 {[%clk 0:01:26]} 20. Qe2 {[%clk 0:02:14]}  Be8 {[%clk 0:01:16]} 21. f4 {[%clk 0:02:11]}  Nc4 {[%clk 0:01:15]} 22. f5 {[%clk 0:02:07]}  Qb6+ {[%clk 0:01:01]} 23. Kh2 {[%clk 0:02:03]}  Qxb2 {[%clk 0:01:00]} 24. Qg4 {[%clk 0:02:04]}  Ne3 {[%clk 0:00:57]} 25. Qf3 {[%clk 0:01:52]}  Nxd1 {[%clk 0:00:54]} 0-1


[Site "https://www.chess.com"]

[Event "Titled Tuesday Blitz February 14 Early 2023"]
[White "Makhnev, Denis"]
[Black "Bashirli, Nail"]
[WhiteFideId "13707647"]
[BlackFideId "13406809"]
[WhiteElo "2483"]
[BlackElo "2326"]
[Result "1-0"]
[Round "06"]
[TimeControl "180+2"]
[Date "2023.02.15"]
[WhiteClock "0:00:12"]
[BlackClock "0:00:06"]

1. d4 {[%clk 0:03:00]}  Nf6 {[%clk 0:02:53]} 2. c4 {[%clk 0:03:00]}  e6 {[%clk 0:02:52]} 3. Nf3 {[%clk 0:03:00]}  Bb4+ {[%clk 0:02:52]} 4. Bd2 {[%clk 0:03:00]}  Qe7 {[%clk 0:02:52]} 5. e3 {[%clk 0:03:00]}  O-O {[%clk 0:02:52]} 6. Bd3 {[%clk 0:03:00]}  Bxd2+ {[%clk 0:02:52]} 7. Qxd2 {[%clk 0:03:01]}  d6 {[%clk 0:02:53]} 8. Nc3 {[%clk 0:03:00]}  e5 {[%clk 0:02:53]} 9. Bc2 {[%clk 0:03:00]}  c6 {[%clk 0:02:53]} 10. h3 {[%clk 0:02:59]}  e4 {[%clk 0:02:52]} 11. Nh2 {[%clk 0:02:57]}  d5 {[%clk 0:02:53]} 12. g4 {[%clk 0:02:48]}  dxc4 {[%clk 0:02:39]} 13. Nf1 {[%clk 0:02:48]}  Na6 {[%clk 0:02:32]} 14. a3 {[%clk 0:02:42]}  c5 {[%clk 0:02:23]} 15. d5 {[%clk 0:02:42]}  Rd8 {[%clk 0:02:18]} 16. g5 {[%clk 0:02:29]}  Nh5 {[%clk 0:02:15]} 17. Rg1 {[%clk 0:02:02]}  Bf5 {[%clk 0:02:11]} 18. Rd1 {[%clk 0:01:59]}  Nc7 {[%clk 0:02:01]} 19. d6 {[%clk 0:01:56]}  Qe5 {[%clk 0:02:00]} 20. Qe2 {[%clk 0:01:56]}  Rxd6 {[%clk 0:01:51]} 21. Rxd6 {[%clk 0:01:55]}  Qxd6 {[%clk 0:01:52]} 22. Qxh5 {[%clk 0:01:56]}  Rd8 {[%clk 0:01:49]} 23. Qe2 {[%clk 0:01:24]}  b5 {[%clk 0:01:46]} 24. Ng3 {[%clk 0:01:25]}  Bg6 {[%clk 0:01:32]} 25. h4 {[%clk 0:01:24]}  b4 {[%clk 0:01:31]} 26. Ncxe4 {[%clk 0:01:07]}  Qe5 {[%clk 0:01:29]} 27. h5 {[%clk 0:01:08]}  Bxe4 {[%clk 0:01:24]} 28. Bxe4 {[%clk 0:01:04]}  bxa3 {[%clk 0:01:20]} 29. f4 {[%clk 0:01:03]}  Qxb2 {[%clk 0:01:16]} 30. g6 {[%clk 0:00:49]}  c3 {[%clk 0:00:41]} 31. gxf7+ {[%clk 0:00:44]}  Kf8 {[%clk 0:00:39]} 32. h6 {[%clk 0:00:19]}  g6 {[%clk 0:00:32]} 33. Qxb2 {[%clk 0:00:10]}  cxb2 {[%clk 0:00:29]} 34. Bb1 {[%clk 0:00:11]}  Nb5 {[%clk 0:00:23]} 35. Ne4 {[%clk 0:00:11]}  c4 {[%clk 0:00:14]} 36. Rg2 {[%clk 0:00:10]}  c3 {[%clk 0:00:13]} 37. Rc2 {[%clk 0:00:10]}  Rc8 {[%clk 0:00:11]} 38. Ba2 {[%clk 0:00:10]}  a5 {[%clk 0:00:09]} 39. Ng5 {[%clk 0:00:10]}  Ke7 {[%clk 0:00:06]} 40. Nxh7 {[%clk 0:00:10]}  Nd6 {[%clk 0:00:05]} 41. f8=Q+ {[%clk 0:00:10]}  Rxf8 {[%clk 0:00:06]} 42. Nxf8 {[%clk 0:00:11]}  Kxf8 {[%clk 0:00:06]} 43. Rxc3 {[%clk 0:00:12]} 1-0


[Site "https://www.chess.com"]

[Event "Titled Tuesday Blitz February 14 Early 2023"]
[White "Lortkipanidze, Nodar"]
[Black "Timofeev, Artyom"]
[WhiteFideId "13604058"]
[BlackFideId "4140419"]
[WhiteElo "2406"]
[BlackElo "2567"]
[Result "0-1"]
[Round "06"]
[TimeControl "180+2"]
[Date "2023.02.15"]
[WhiteClock "0:00:58"]
[BlackClock "0:01:34"]

1. e4 {[%clk 0:03:00]}  d6 {[%clk 0:02:59]} 2. d4 {[%clk 0:03:01]}  Nf6 {[%clk 0:02:59]} 3. Nc3 {[%clk 0:03:01]}  g6 {[%clk 0:02:59]} 4. f3 {[%clk 0:03:00]}  Nbd7 {[%clk 0:02:55]} 5. Be3 {[%clk 0:03:00]}  c6 {[%clk 0:02:51]} 6. Qd2 {[%clk 0:03:00]}  b5 {[%clk 0:02:50]} 7. O-O-O {[%clk 0:03:00]}  Bb7 {[%clk 0:02:46]} 8. Kb1 {[%clk 0:03:00]}  a5 {[%clk 0:02:45]} 9. h4 {[%clk 0:02:54]}  Nb6 {[%clk 0:02:42]} 10. d5 {[%clk 0:02:45]}  b4 {[%clk 0:02:35]} 11. dxc6 {[%clk 0:02:36]}  Bxc6 {[%clk 0:02:30]} 12. Nb5 {[%clk 0:02:25]}  Bg7 {[%clk 0:02:30]} 13. e5 {[%clk 0:02:23]}  Nfd5 {[%clk 0:02:28]} 14. exd6 {[%clk 0:02:10]}  O-O {[%clk 0:02:27]} 15. Bd4 {[%clk 0:02:09]}  e5 {[%clk 0:02:19]} 16. Bc5 {[%clk 0:01:59]}  Na4 {[%clk 0:02:17]} 17. Bf2 {[%clk 0:01:39]}  e4 {[%clk 0:01:57]} 18. Bd4 {[%clk 0:01:35]}  e3 {[%clk 0:01:49]} 19. Qe1 {[%clk 0:01:27]}  Bxd4 {[%clk 0:01:38]} 20. Rxd4 {[%clk 0:01:21]}  Qf6 {[%clk 0:01:35]} 21. Ne2 {[%clk 0:00:58]}  Bxb5 {[%clk 0:01:34]} 22. Rxd5 {[%clk 0:00:58]}  Qxb2# {[%clk 0:01:34]} 0-1


[Site "https://www.chess.com"]